[Event "Romanian Superleague 2022"]
[Site "Oradea"]
[Date "2022.09.21"]
[Round "1.24"]
[White "Antonica, Dragos-Andrei"]
[Black "Doncea, Vladimir"]
[Result "1/2-1/2"]
[ECO "D02"]
[WhiteElo "2321"]
[BlackElo "2342"]
[Annotator "TA"]
[PlyCount "96"]
[EventDate "2022.09.21"]
[EventType "team-tourn"]
[EventCountry "ROU"]
[SourceTitle "playchess.com"]
[Source "ChessBase"]
[SourceQuality "1"]
[TimeControl "40/5400+30:1800+30"]

{[%evp 9,96,7,16,4,27,23,29,22,29,18,93,21,22,26,28,22,17,15,45,40,66,40,40,40,40,40,41,40,40,40,41,37,47,33,28,27,47,46,54,81,54,59,51,46,59,0,63,8,77,0,81,8,40,39,43,0,0,0,33,27,43,34,82,64,63,10,25,32,25,8,8,8,82,77,87,0,8,0,0,0,0,0,0,-129,0,0,0,-10,0]} 1. d4 {[%emt 0:00:07]} d5 {[%emt 0:00:17]} 2. Nf3 {[%emt 0:00:07]} Nf6 {[%emt 0:01:34]} 3. c3 {[%emt 0:02:20]} h6 {[%emt 0:03:28]} 4. Qc2 {[%emt 0:06:34] [#]} g6 $146 {[%emt 0:06:55]} ({Predecessor:} 4... e6 5. Bf4 Nh5 6. Be5 Nc6 7. e3 Nf6 8. Bd3 Bd6 9. Nbd2 Qe7 10. Bxd6 Qxd6 11. b4 {½-½ (47) Andriandaza,T (1690)-Calmels,N (1907) St Denis 2013}) 5. h3 {[%emt 0:00:24]} c6 {[%emt 0:00:57]} 6. Bf4 {[%emt 0:05:11] D02: 1 d4 d5 2 Nf3 sidelines, including 2...Nf6 3 g3 and 2...Nf6 3 Bf4.} Bg7 {[%emt 0:02:21]} (6... Bf5 $5 {[%cal Rf5c2]} 7. Qb3 Qb6 $11) 7. e3 {[%emt 0:01:11]} Bf5 {[%emt 0:00:31]} 8. Qb3 {[%emt 0:00:18] White has an edge.} Qb6 {[%emt 0:01:18]} 9. g4 {[%emt 0:10:43]} g5 {[%emt 0:11:04] [#]} (9... Be6 $11) 10. Bxb8 {[%emt 0:25:32]} (10. Bxg5 $1 $16 Be4 11. Bxf6 Bxf6 12. Nbd2) 10... Bxb1 $11 {[%emt 0:05:04]} 11. Rxb1 {[%emt 0:02:24]} Rxb8 {[%emt 0:02:38]} 12. Bd3 {[%emt 0:00:19]} e6 {[%emt 0:03:51]} 13. Ke2 {[%emt 0:01:45]} Nd7 {[%emt 0:09:56]} 14. h4 {[%emt 0:06:56]} e5 {[%emt 0:06:19] Strongly threatening ...Qxb3.} 15. dxe5 {[%emt 0:07:14] White is much more active. The black rooks are badly placed.} (15. hxg5 e4 16. Qxb6 exd3+ 17. Kxd3 axb6 $15) (15. Qxb6 {seems wilder.} axb6 16. Bf5 e4 17. Nd2) 15... Qxb3 {[%emt 0:01:07]} 16. axb3 {[%emt 0:01:32]} Nxe5 {[%emt 0:00:17]} 17. hxg5 {[%emt 0:01:17]} hxg5 {[%emt 0:00:20]} 18. Rxh8+ {[%emt 0:04:54]} Bxh8 {[%emt 0:01:14]} 19. Rh1 {[%emt 0:09:13]} Bf6 {[%emt 0:00:18] [#]} 20. Nxg5 $1 {[%emt 0:00:33]} Ke7 {[%emt 0:00:34]} ({Don't do} 20... Nxd3 21. Kxd3 Ke7 22. Nf3 $16) 21. Nh7 {[%emt 0:03:03]} Nxg4 {[%emt 0:00:55]} 22. Bf5 {[%emt 0:00:58]} Rg8 {[%emt 0:04:17]} 23. f4 {[%emt 0:00:19]} Bh8 $1 {[%emt 0:00:55]} 24. Bxg4 {[%emt 0:04:13]} Rxg4 $14 {[%emt 0:00:10][%mdl 4096] Endgame KRB-KRN} 25. Ng5 {[%emt 0:00:05]} Bg7 {[%emt 0:00:50]} 26. Kf3 {[%emt 0:00:33] Against Rg2} f5 {[%emt 0:00:08]} 27. Kf2 {[%emt 0:00:47]} (27. b4 $14) 27... a6 {[%emt 0:02:26]} ({Better is} 27... a5 $11) 28. Rh5 {[%emt 0:02:52]} (28. Rh7 $14 Kf6 29. b4) 28... Kf6 {[%emt 0:04:33]} (28... Bf6 $11 {keeps the balance.}) 29. Rh1 {[%emt 0:00:57]} Ke7 {[%emt 0:00:23]} 30. Kf3 {[%emt 0:01:27]} (30. Rh7 $16 Kf6 31. b4) 30... Bf6 {[%emt 0:00:56]} 31. Rh7+ {[%emt 0:00:23]} Kd6 {[%emt 0:00:08]} 32. Rh6 {[%emt 0:00:25]} (32. Rf7 $5 {[%cal Rf7f6]} Be7 33. Rxf5 $14) 32... Ke7 {[%emt 0:00:11]} 33. Rh7+ {[%emt 0:00:07]} Kd6 {[%emt 0:00:06]} 34. Rf7 {[%emt 0:02:05]} Bxg5 {[%emt 0:00:24]} 35. Rxf5 {[%emt 0:00:27]} ({Of course not} 35. fxg5 Rxg5 36. Rxb7 Rg1 $11) 35... Rg1 {[%emt 0:03:22]} 36. Rxg5 $16 {[%emt 0:00:28] KR-KR} Rf1+ {[%emt 0:00:08]} 37. Ke2 {[%emt 0:00:43]} (37. Kg4 $14) 37... Rb1 $1 $11 {[%emt 0:00:11]} 38. Rg6+ {[%emt 0:00:01]} Kc5 $1 {[%emt 0:01:53]} 39. Kd3 {[%emt 0:01:00] b4+ is the strong threat.} ({Much less strong is} 39. b4+ Kc4 $16) 39... Rxb2 {[%emt 0:00:10]} 40. b4+ {[%emt 0:00:00]} Kb6 {[%emt 0:00:00]} (40... Kb5 $11) 41. Kd4 {[%emt 0:04:53] aiming for Ke5.} Kb5 {[%emt 0:15:41]} 42. Rg3 {[%emt 0:04:08]} ({White should try} 42. f5 $16) 42... Rf2 $1 {[%emt 0:03:06]} 43. Kd3 {[%emt 0:04:09]} b6 {[%emt 0:00:29]} 44. Rg5 {[%emt 0:00:55]} Ka4 {[%emt 0:04:24]} 45. Rg6 {[%emt 0:01:06]} Kb5 {[%emt 0:37:11]} 46. f5 {[%emt 0:18:52]} (46. Rg8 $11) 46... a5 {[%emt 0:00:30]} ({Black should play} 46... Rxf5 $17 {Hoping for ...Rh5.} 47. Re6 Rf3) 47. bxa5 {[%emt 0:00:30]} bxa5 {[%emt 0:00:30]} 48. f6 {[%emt 0:00:30]} a4 {[%emt 0:00:30] Weighted Error Value: White=0.23 (precise) /Black=0.19 (very precise)} 1/2-1/2

[Event "Romanian Superleague 2022"]
[Site "Oradea"]
[Date "2022.09.21"]
[Round "1.25"]
[White "Kozak, Adam"]
[Black "Deac, Bogdan-Daniel"]
[Result "1/2-1/2"]
[ECO "E40"]
[WhiteElo "2516"]
[BlackElo "2710"]
[Annotator "TA"]
[PlyCount "109"]
[EventDate "2022.09.21"]
[EventType "team-tourn"]
[EventCountry "ROU"]
[SourceTitle "playchess.com"]
[Source "ChessBase"]
[SourceQuality "1"]
[TimeControl "40/5400+30:1800+30"]

{[%evp 9,109,-1,0,-11,-5,0,0,0,10,-2,1,-30,-30,-31,-27,-31,-19,-19,-19,-24,-12,-28,-12,-6,-10,-12,-11,-10,-13,-13,-10,-19,-13,-11,-10,-10,-10,-8,-5,-15,0,0,0,0,0,-8,0,-13,0,0,0,0,0,-16,-3,-4,0,-17,-17,-17,-17,-54,-8,-20,-10,-41,-3,-40,-30,-43,0,-8,0,0,0,0,0,0,0,0,0,0,0,0,-6,-6,-5,-8,0,0,0,0,0,0,0,0,0,0,0,0,0,0]} 1. d4 {[%emt 0:00:03][%cal Bd2d4,Bd4e5][%mdl 32]} Nf6 {[%emt 0:00:17]} 2. c4 {[%emt 0:00:08]} e6 {[%emt 0:00:03]} 3. Nc3 {[%emt 0:00:23]} Bb4 {[%emt 0:01:27]} 4. e3 {[%emt 0:00:14]} d5 {[%emt 0:01:40]} 5. Bd3 {[%emt 0:00:52]} e5 {[%emt 0:02:13]} 6. dxe5 {[%emt 0:13:29] E40: Nimzo-Indian: Rubinstein (4 e3): Unusual Black 4th moves.} dxc4 {[%emt 0:00:21]} 7. Bxc4 {[%emt 0:18:52]} Bxc3+ {[%emt 0:10:05]} 8. bxc3 {[%emt 0:00:17]} Qxd1+ {[%emt 0:00:04]} 9. Kxd1 {[%emt 0:00:11]} Ng4 {[%emt 0:00:03][%csl LRe5,LRf2] [#]} 10. Ke1 $146 {[%emt 0:09:22] [#] f4 is the strong threat.} ({Predecessor:} 10. Ke2 Nxe5 11. Bd3 Nxd3 12. Kxd3 b6 13. Nf3 Nc6 14. Ba3 Bg4 15. Ke2 Ne5 16. Rad1 {0-1 (50) Wankhade,S (1559)-Laxman,R (2437) Hyderabad 2019}) 10... Nxe5 {[%emt 0:00:26]} 11. Be2 {[%emt 0:01:35]} Bf5 {[%emt 0:11:27]} 12. Nf3 {[%emt 0:04:43]} Nd3+ {[%emt 1:08:24]} 13. Kf1 {[%emt 0:00:45] And now Ba3 would win.} Nxc1 {[%emt 0:00:00]} 14. Rxc1 {[%emt 0:00:09]} Nd7 {[%emt 0:00:00]} 15. Nd4 {[%emt 0:04:35]} Be6 {[%emt 0:00:00]} 16. Nxe6 {[%emt 0:02:52]} fxe6 {[%emt 0:00:00]} 17. Bc4 {[%emt 0:00:08]} Ke7 {[%emt 0:00:00]} 18. Ke2 {[%emt 0:00:38]} Rad8 {[%emt 0:00:00]} 19. Rhd1 {[%emt 0:10:50]} Nc5 {[%emt 0:00:00]} 20. f4 {[%emt 0:01:14]} Rd6 {[%emt 0:00:00]} 21. Rxd6 {[%emt 0:07:58]} cxd6 $11 {[%emt 0:00:00][%mdl 4096] Endgame KRB-KRN} 22. Bd3 {[%emt 0:01:51]} h5 {[%emt 0:00:00]} 23. g3 {[%emt 0:05:27]} Rc8 {[%emt 0:00:00]} 24. Kd2 {[%emt 0:01:38]} Kf6 {[%emt 0:00:00]} 25. Rb1 {[%emt 0:01:53]} Rc7 {[%emt 0:00:00]} 26. Bc2 {[%emt 0:01:19]} b6 {[%emt 0:00:00]} 27. c4 {[%emt 0:06:28]} g6 {[%emt 0:01:19]} 28. Bd3 {[%emt 0:02:16]} Rg7 {[%emt 0:04:13]} 29. Rf1 {[%emt 0:00:47]} Rd7 {[%emt 0:00:14]} 30. Bc2 {[%emt 0:00:47]} Rc7 {[%emt 0:00:11]} 31. Rb1 {[%emt 0:01:17]} Nb7 {[%emt 0:00:53]} 32. Bd3 {[%emt 0:01:49]} Na5 {[%emt 0:00:15]} 33. Rc1 {[%emt 0:00:43]} Rc5 {[%emt 0:00:56]} 34. Rc3 {[%emt 0:00:45]} g5 {[%emt 0:01:43]} 35. Be2 {[%emt 0:01:00]} h4 {[%emt 0:01:08]} (35... g4 $15 {is superior.}) 36. Rc1 {[%emt 0:00:36]} Nc6 {[%emt 0:00:35]} 37. Kc3 {[%emt 0:00:35]} Ne7 {[%emt 0:00:27]} 38. Bd3 {[%emt 0:00:27]} hxg3 {[%emt 0:00:33]} 39. hxg3 {[%emt 0:00:02]} b5 {[%emt 0:00:29]} 40. Kd2 {[%emt 0:00:00] The position is equal.} b4 {[%emt 0:00:00]} 41. Rh1 {[%emt 0:12:08]} Nf5 {[%emt 0:04:52]} 42. g4 {[%emt 0:12:02]} Nh4 {[%emt 0:00:51]} 43. Rb1 {[%emt 0:00:05]} Ra5 {[%emt 0:14:04]} 44. Rxb4 {[%emt 0:01:16]} Rxa2+ {[%emt 0:00:09]} 45. Kc3 {[%emt 0:04:18]} Ra3+ {[%emt 0:06:04]} 46. Kd2 $1 {[%emt 0:00:02]} Nf3+ {[%emt 0:01:52]} 47. Ke2 {[%emt 0:00:29]} Ng1+ {[%emt 0:04:53]} 48. Kd2 {[%emt 0:00:53]} Nh3 {[%emt 0:00:32]} 49. Rb5 {[%emt 0:04:17]} gxf4 {[%emt 0:01:35]} 50. exf4 {[%emt 0:00:05]} Nxf4 {[%emt 0:00:05]} 51. g5+ {[%emt 0:00:04]} Ke7 {[%emt 0:00:08]} 52. Rb7+ {[%emt 0:00:10]} Kf8 {[%emt 0:01:03]} 53. Rb8+ {[%emt 0:00:06]} Ke7 {[%emt 0:00:25]} 54. Rb7+ {[%emt 0:00:01]} Kf8 {[%emt 0:00:44]} 55. Rb8+ {[%emt 0:00:02] Weighted Error Value: White=0.06 (flawless) /Black=0.05 (flawless)} 1/2-1/2

[Event "Romanian Superleague 2022"]
[Site "Oradea"]
[Date "2022.09.21"]
[Round "1.26"]
[White "Miroshnichenko, Evgenij"]
[Black "Petkov, Momchil"]
[Result "0-1"]
[ECO "A14"]
[WhiteElo "2597"]
[BlackElo "2511"]
[Annotator "TA"]
[PlyCount "99"]
[EventDate "2022.09.21"]
[EventType "team-tourn"]
[EventCountry "ROU"]
[SourceTitle "playchess.com"]
[Source "ChessBase"]
[SourceQuality "1"]
[TimeControl "40/5400+30:1800+30"]

{[%evp 12,99,5,8,10,14,9,0,0,0,0,-13,13,7,4,0,0,0,16,0,0,0,0,0,0,0,0,-47,-31,-25,-30,-26,-24,-45,-29,-39,-35,-47,-31,-95,-106,-89,-93,-96,-86,-130,-91,-91,-48,-48,-49,-58,-58,-66,-38,-33,-38,-41,-10,-8,0,-31,-37,-37,-33,-63,-26,-79,-79,-79,-79,-79,-79,-87,-79,-79,-79,-79,-79,-79,-79,-79,-79,-79,-79,-4134,-3749,-1684,-1604,-857]} 1. Nf3 {[%emt 0:00:10]} d5 {[%emt 0:00:18]} 2. g3 {[%emt 0:00:18]} Nf6 {[%emt 0:00:25]} 3. Bg2 {[%emt 0:00:07]} e6 {[%emt 0:00:14]} 4. O-O {[%emt 1:31:55]} Be7 {[%emt 0:00:20]} 5. c4 {[%emt 0:00:00]} O-O {[%emt 0:00:20]} 6. b3 {[%emt 0:00:00]} d4 {[%emt 0:00:52]} 7. e3 {[%emt 0:00:00]} c5 {[%emt 0:00:17] A14: English Opening: 1...e6 with b3 by White.} 8. exd4 {[%emt 0:00:00]} cxd4 {[%emt 0:00:08]} 9. d3 {[%emt 0:00:00]} Nc6 {[%emt 0:00:38] The position is equal.} 10. Re1 {[%emt 0:00:00]} Re8 $1 {[%emt 0:02:01][%mdl 4] outshines the older 10...Nd7.} 11. Nbd2 {[%emt 0:00:00]} h6 {[%emt 0:17:29]} 12. a3 {[%emt 0:00:00]} a5 {[%emt 0:00:15] Inhibits b4.} 13. Ne5 {[%emt 0:00:00]} Nxe5 {[%emt 0:16:53]} 14. Rxe5 {[%emt 0:00:00] [#]} Ra7 $146 {[%emt 0:03:30]} ({Predecessor:} 14... Bd6 15. Re1 e5 16. Ne4 Nxe4 17. Bxe4 Rb8 18. Qc2 b6 19. Bd2 f5 20. Bd5+ Be6 21. Bxe6+ Rxe6 {1-0 (39) Samuel,R-Anders,H freechess.de 2016}) 15. Rb1 {[%emt 0:00:00]} Bd6 {[%emt 0:06:47]} 16. Re1 {[%emt 0:00:00]} e5 {[%emt 0:02:07]} 17. b4 {[%emt 0:00:00]} axb4 {[%emt 0:03:06]} 18. axb4 {[%emt 0:00:00]} Bf5 {[%emt 0:04:25]} 19. Ne4 {[%emt 0:00:00]} (19. c5 $11) 19... Nxe4 {[%emt 0:05:16]} 20. Bxe4 {[%emt 0:00:00]} Bxe4 {[%emt 0:01:00]} 21. Rxe4 {[%emt 0:00:00]} b6 {[%emt 0:00:37]} 22. Re1 {[%emt 0:00:00]} Qf6 {[%emt 0:04:14]} (22... Qa8 {with more complications.} 23. b5 Ra2 24. Qg4 Re6) 23. Qe2 {[%emt 0:00:00]} Qf5 {[%emt 0:02:25]} 24. Kg2 {[%emt 0:00:00]} Ra4 {[%emt 0:06:18][%cal Ba7a4,Ba4b4,Bb4b6][%mdl 32]} 25. c5 {[%emt 0:00:00]} (25. b5 $15) 25... bxc5 $17 {[%emt 0:00:04] Black is much more active.} 26. bxc5 {[%emt 0:00:00]} Bxc5 {[%emt 0:00:57]} 27. Qc2 {[%emt 0:00:00][%csl LRa4,LRc5]} Rb4 {[%emt 0:00:11]} 28. Ra1 {[%emt 0:00:00]} Bf8 {[%emt 0:03:15]} 29. Ba3 {[%emt 0:00:00]} Rb6 {[%emt 0:06:58]} 30. Bxf8 {[%emt 0:00:27]} Rxf8 {[%emt 0:00:04]} 31. Ra5 $1 {[%emt 0:00:19]} Re8 {[%emt 0:01:44]} 32. Re4 {[%emt 0:02:28]} Qf6 {[%emt 0:03:40]} (32... Rf6 33. f4 $11) 33. f4 {[%emt 0:06:41][%cal Re4e5]} Reb8 {[%emt 0:03:33] ...Rb2 is the strong threat.} 34. fxe5 {[%emt 0:00:58]} Qd8 {[%emt 0:02:59]} (34... Qe6 $5 {[%cal Rb6b2]} 35. Ra2 Rb5 $15) 35. Ra2 {[%emt 0:01:28] Prevents Rb2.} Rb3 {[%emt 0:00:52]} 36. Qe2 {[%emt 0:01:26]} Qd5 {[%emt 0:01:05][%cal Ob3d3]} 37. Rd2 {[%emt 0:01:12]} Re8 $36 {[%emt 0:00:08][%cal Bb8e8,Be8e5,Be5f5][%mdl 2080] Black has the initiative.} 38. Kf2 {[%emt 0:00:28]} Qb5 {[%emt 0:01:43]} 39. Rxd4 {[%emt 0:01:10]} (39. Kg2 $11 {remains equal.}) 39... Rxe5 {[%emt 0:00:48]} ({Much weaker is} 39... Qc5 40. Qe3 $11) 40. Re4 {[%emt 0:00:00]} Rf5+ {[%emt 0:00:00]} 41. Kg2 {[%emt 0:03:12]} Qd5 {[%emt 0:02:42]} 42. Qe3 {[%emt 0:02:11]} Rb1 {[%emt 0:09:42]} 43. Qd4 {[%emt 0:08:57]} Qc6 {[%emt 0:01:58] Strongly threatening ...Qc1.} 44. Rf2 {[%emt 0:01:43]} Rxf2+ {[%emt 0:04:22]} 45. Qxf2 {[%emt 0:00:53] KQR-KQR} Qd5 {[%emt 0:06:57] aiming for ...f5.} 46. Qc2 {[%emt 0:08:26]} Qb7 {[%emt 0:02:51]} 47. Kh3 {[%emt 0:02:07][%cal Oe4e7]} Rb2 {[%emt 0:00:38]} 48. Qa4 {[%emt 0:05:19][%mdl 8192] [#] Against Qd7+} (48. Re7 $17) 48... Kh7 $1 $19 {[%emt 0:03:59]} ({And not} 48... Qd5 49. Re8+ Kh7 50. Qe4+ Qxe4 51. dxe4 $15) 49. Qe8 {[%emt 0:01:00] [#]} Rf2 $1 {[%emt 0:00:42] ( -> ...g5)} ({Weaker is} 49... Qd5 50. Qe5 Qd7+ 51. Rg4 Rxh2+ 52. Kxh2 $17) 50. Qe5 {[%emt 0:02:35] Weighted Error Value: White=0.22 (precise) /Black=0.07 (flawless)} 0-1

[Event "Romanian Superleague 2022"]
[Site "Oradea"]
[Date "2022.09.21"]
[Round "1.27"]
[White "Bonte, Andrei-Mihai"]
[Black "Szabo, Gergely-Andras-Gyula"]
[Result "1/2-1/2"]
[ECO "E05"]
[WhiteElo "2339"]
[BlackElo "2512"]
[Annotator "TA"]
[PlyCount "60"]
[EventDate "2022.09.21"]
[EventType "team-tourn"]
[EventCountry "ROU"]
[SourceTitle "playchess.com"]
[Source "ChessBase"]
[SourceQuality "1"]
[TimeControl "40/5400+30:1800+30"]

{[%evp 19,60,0,0,0,0,0,0,0,20,0,0,0,0,0,0,0,0,0,0,-11,-10,-11,-12,-13,-10,-16,-15,-9,-9,-30,-29,-31,0,0,-3,-2,0,0,0,-6,-7,-8,-4]} 1. d4 {[%emt 0:00:05]} Nf6 {[%emt 0:00:05]} 2. Nf3 {[%emt 0:00:07]} e6 {[%emt 0:00:05]} 3. g3 {[%emt 0:01:06]} d5 {[%emt 0:02:19]} 4. Bg2 {[%emt 0:04:55]} Be7 {[%emt 0:01:52]} 5. O-O {[%emt 0:00:20]} O-O {[%emt 0:00:06]} 6. c4 {[%emt 0:01:04]} dxc4 {[%emt 0:02:49]} 7. Qa4 {[%emt 0:00:15]} a6 {[%emt 0:00:20]} 8. Qxc4 {[%emt 0:00:06]} b5 {[%emt 0:00:08]} 9. Qc2 {[%emt 0:00:09]} Bb7 {[%emt 0:00:08]} 10. Bg5 {[%emt 0:07:34]} Nbd7 {[%emt 0:05:18]} 11. Bxf6 {[%emt 0:00:22] E05: Open Catalan: 5 Nf3 Be7.} Nxf6 {[%emt 0:00:41]} 12. Nbd2 {[%emt 0:00:20]} Rc8 {[%emt 0:05:44][%cal Ba8c8,Bc8c5,Bc5d5,Bd5d2][%mdl 32]} 13. Nb3 $1 {[%emt 0:01:39] Prevents c5.} Be4 {[%emt 0:02:50]} (13... c5 $5) 14. Qd2 {[%emt 0:01:24]} c5 {[%emt 0:06:08]} 15. dxc5 {[%emt 0:00:14]} Bxc5 {[%emt 0:00:22]} 16. Qxd8 {[%emt 0:03:58]} Rfxd8 {[%emt 0:00:15]} 17. Nxc5 {[%emt 0:00:05]} Rxc5 {[%emt 0:00:04]} 18. Rfc1 {[%emt 0:01:24] [#]} Rcd5 $146 {[%emt 0:15:20]} ({Predecessor:} 18... Rdc8 19. Rxc5 Rxc5 20. Rd1 Kf8 21. Ne1 Bxg2 22. Kxg2 Ke7 {½-½ (22) Mamedov,R (2628)-Gagunashvili,M (2570) Tbilisi 2012}) 19. h4 {[%emt 0:04:40]} h6 {[%emt 0:00:49]} 20. Kf1 {[%emt 0:03:21]} g5 {[%emt 0:08:25]} 21. hxg5 {[%emt 0:01:04]} hxg5 {[%emt 0:00:11]} 22. Ne1 {[%emt 0:04:14]} Bxg2+ {[%emt 0:05:36]} 23. Nxg2 {[%emt 0:04:15]} Rd2 {[%emt 0:03:14]} 24. Rab1 {[%emt 0:04:13]} Ne4 {[%emt 0:05:14]} 25. Ke1 {[%emt 0:04:23]} f5 {[%emt 0:10:30]} 26. Ne3 {[%emt 0:06:27] The position is equal.} Kf7 {[%emt 0:04:14]} 27. Nf1 {[%emt 0:03:14]} R2d4 {[%emt 0:06:23]} 28. f3 {[%emt 0:02:32]} Nd6 {[%emt 0:00:55]} 29. Rd1 {[%emt 0:03:10]} Rxd1+ {[%emt 0:05:54]} 30. Rxd1 {[%emt 0:00:18]} Ke7 {[%emt 0:00:05] An interesting draw.  Weighted Error Value: White=0.03 (flawless) /Black=0.03 (flawless)} 1/2-1/2

[Event "Romanian Superleague 2022"]
[Site "Oradea"]
[Date "2022.09.21"]
[Round "1.28"]
[White "Nevednichy, Vladislav"]
[Black "Ognean, Mihnea-Ionut"]
[Result "1-0"]
[ECO "B31"]
[WhiteElo "2472"]
[BlackElo "2303"]
[Annotator "TA"]
[PlyCount "49"]
[EventDate "2022.09.21"]
[EventType "team-tourn"]
[EventCountry "ROU"]
[SourceTitle "playchess.com"]
[Source "ChessBase"]
[SourceQuality "1"]
[TimeControl "40/5400+30:1800+30"]

{[%evp 16,49,18,30,34,5,86,94,70,85,111,104,172,175,181,165,206,172,205,144,290,281,399,420,520,444,918,914,1262,1249,1302,1197,1262,1244,1159,1144]} 1. e4 {[%emt 0:00:03]} c5 {[%emt 0:00:15]} 2. Nf3 {[%emt 0:00:05]} Nc6 {[%emt 0:00:05]} 3. Bb5 {[%emt 0:00:05]} g6 {[%emt 0:00:10]} 4. O-O {[%emt 0:00:05]} Bg7 {[%emt 0:00:20]} 5. c3 {[%emt 0:00:51]} e5 {[%emt 0:00:46]} 6. d4 {[%emt 0:00:42]} cxd4 {[%emt 0:00:27]} 7. cxd4 {[%emt 0:00:06]} exd4 {[%emt 0:00:04]} 8. Bf4 {[%emt 0:00:32]} Nge7 {[%emt 0:00:57]} 9. Bd6 {[%emt 0:00:15]} a6 {[%emt 0:02:49] B31: Sicilian: 2...Nc6 3 Bb5 g6.} 10. Bd3 {[%emt 0:01:12]} b5 {[%emt 0:01:28]} (10... b6 $1 $11 {keeps the balance.}) 11. a4 $16 {[%emt 0:11:17]} bxa4 {[%emt 0:13:35] White is better.} 12. Nbd2 {[%emt 0:00:34]} O-O {[%emt 0:09:47] [#]} 13. Qxa4 $146 {[%emt 0:01:16] White is much more active.} ({Predecessor:} 13. Rxa4 a5 14. b4 Bb7 15. b5 Nb4 16. Bc4 Nc8 17. Bxf8 Qxf8 18. e5 Nb6 19. Ra1 Bxf3 20. Qxf3 Bxe5 {½-½ (43) Petkov,M (2443)-Gueci,T (2188) Reykjavik 2021}) 13... Ra7 {[%emt 0:18:26] [#]} (13... a5 $16 {was called for.}) 14. b4 $1 $18 {[%emt 0:04:04][%mdl 1024] White has strong compensation.} Bb7 {[%emt 0:00:55]} 15. Qb3 {[%emt 0:04:02]} h6 {[%emt 0:08:00]} 16. h4 {[%emt 0:01:25]} Ra8 {[%emt 0:05:24]} 17. Ra4 {[%emt 0:06:49]} g5 {[%emt 0:15:27]} (17... a5 $16) 18. hxg5 {[%emt 0:00:42]} hxg5 {[%emt 0:00:04]} (18... Ng6 $142 19. Bxf8 Qxf8) 19. Nxg5 {[%emt 0:01:47]} Be5 {[%emt 0:02:46]} 20. Bc4 {[%emt 0:12:12][%cal Ob3h3] [#] White threatens Qh3! and mate. White is clearly winning.} Nd5 {[%emt 0:06:49]} (20... Bxd6 {gets mated.} 21. Qh3) (20... Kg7 $142 21. Qh3 (21. Nxf7 Rxf7 22. Bxe5+ Nxe5 $14) 21... Rh8) 21. exd5 {[%emt 0:03:13]} Bxd6 {[%emt 0:00:11]} 22. Nde4 {[%emt 0:06:23] And now Qh3 would win. Pair of Knights!} Bf4 {[%emt 0:00:45]} 23. dxc6 {[%emt 0:03:58]} Bxc6 {[%emt 0:00:03]} 24. Ra5 {[%emt 0:00:37] Qh3 is the strong threat.} Kg7 {[%emt 0:02:57]} 25. Rf5 {[%emt 0:01:08] White took control after the opening.  Weighted Error Value: White=0.26 (precise) /Black=0.65} 1-0